[Event "Czech Juniors Girls 2024"]
[Site "Jaromerice nad Rokytnou"]
[Date "2024.03.14"]
[Round "7.5"]
[White "Petirova, Iva"]
[Black "Voriskova, Anna"]
[Result "0-1"]
[ECO "B31"]
[WhiteElo "1846"]
[BlackElo "1999"]
[Annotator "RC"]
[PlyCount "88"]
[EventDate "2024.03.10"]
[EventType "tourn"]
[EventCountry "CZE"]
[SourceTitle "playchess.com"]
[Source "ChessBase"]
[SourceQuality "1"]
[WhiteTeam "Czech Republic"]
[BlackTeam "Czech Republic"]
[WhiteTeamCountry "CZE"]
[BlackTeamCountry "CZE"]
[TimeControl "40/5400+30:1800+30"]

1. e4 {[%emt 0:00:04]} c5 {[%emt 0:00:08]} 2. Nf3 {[%emt 0:00:10]} Nc6 {[%emt 0:00:07]} 3. Bb5 {[%emt 0:00:08]} g6 {[%emt 0:00:16]} 4. O-O {[%emt 0:00:14]} Bg7 {[%emt 0:00:07]} 5. Re1 {[%emt 0:00:18]} e5 {[%emt 0:04:03]} 6. Bxc6 {[%emt 0:00:10]} dxc6 {[%emt 0:00:13]} 7. d3 {[%emt 0:00:13]} Ne7 {[%emt 0:01:04]} 8. a3 {[%emt 0:01:03]} O-O {[%emt 0:01:46]} 9. b4 {[%emt 0:01:15]} cxb4 {[%emt 0:02:50]} 10. axb4 {[%emt 0:00:06]} Bg4 {[%emt 0:02:01]} 11. Nbd2 {[%emt 0:02:43]} Qc7 {[%emt 0:01:48]} 12. h3 {[%emt 0:05:04]} Be6 {[%emt 0:02:46]} 13. Ng5 {[%emt 0:05:25]} Bd7 {[%emt 0:02:23]} 14. Bb2 {[%emt 0:03:58]} h6 {[%emt 0:04:30]} 15. Ngf3 {[%emt 0:00:08]} Be6 {[%emt 0:00:15]} 16. Qe2 {[%emt 0:04:21]} Rfd8 {[%emt 0:01:10]} 17. Nh2 {[%emt 0:02:25]} Kh7 {[%emt 0:05:22]} 18. Ng4 {[%emt 0:01:37]} a6 {[%emt 0:04:52]} 19. Nf3 {[%emt 0:03:58]} Bxg4 {[%emt 0:01:02]} 20. hxg4 {[%emt 0:00:06]} Nc8 {[%emt 0:15:31]} 21. g5 {[%emt 0:02:26]} h5 {[%emt 0:00:17]} 22. Ra5 {[%emt 0:04:01]} Re8 {[%emt 0:01:49]} 23. Rea1 {[%emt 0:01:56]} Na7 {[%emt 0:03:02]} 24. Nh2 {[%emt 0:11:58]} Qe7 {[%emt 0:03:13]} 25. Nf3 {[%emt 0:01:59]} Nb5 {[%emt 0:02:55]} 26. c4 {[%emt 0:03:12]} Nc7 {[%emt 0:07:11]} 27. Rxe5 {[%emt 0:18:31]} Qxb4 {[%emt 0:02:58]} 28. Rxe8 {[%emt 0:01:29]} Rxe8 {[%emt 0:00:15]} 29. Bxg7 {[%emt 0:00:50]} Kxg7 {[%emt 0:00:02]} 30. Qc2 {[%emt 0:00:59]} Rb8 {[%emt 0:06:23]} 31. Rb1 {[%emt 0:00:53]} Qa3 {[%emt 0:05:10]} 32. Nd4 {[%emt 0:01:30]} Qc5 {[%emt 0:01:58]} 33. Qc3 {[%emt 0:01:26]} Kg8 {[%emt 0:01:11]} 34. Nf3 {[%emt 0:02:50]} b5 {[%emt 0:06:00]} 35. Qf6 {[%emt 0:02:14]} Re8 {[%emt 0:01:44]} 36. d4 {[%emt 0:13:16]} Qxc4 {[%emt 0:03:53]} 37. Qd6 {[%emt 0:04:27]} Ne6 {[%emt 0:02:42]} 38. Ne5 {[%emt 0:01:15]} Qxd4 {[%emt 0:03:34]} 39. Qxd4 {[%emt 0:00:06]} Nxd4 {[%emt 0:00:04]} 40. Nd7 {[%emt 0:00:17]} Re7 {[%emt 0:01:57]} 41. Nc5 {[%emt 0:30:21]} a5 {[%emt 0:03:05]} 42. Rd1 {[%emt 0:00:00]} Ne6 {[%emt 0:01:04]} 43. Nb3 {[%emt 0:00:00]} a4 {[%emt 0:01:09]} 44. Na5 {[%emt 0:00:00]} c5 {[%emt 0:01:04]} 0-1

[Event "Czech Juniors Girls 2024"]
[Site "Jaromerice nad Rokytnou"]
[Date "2024.03.15"]
[Round "8.1"]
[White "Trasakova, Adela"]
[Black "Voriskova, Anna"]
[Result "0-1"]
[ECO "A46"]
[WhiteElo "1935"]
[BlackElo "1999"]
[Annotator "RC"]
[PlyCount "66"]
[EventDate "2024.03.10"]
[EventType "tourn"]
[EventCountry "CZE"]
[SourceTitle "playchess.com"]
[Source "ChessBase"]
[SourceQuality "1"]
[WhiteTeam "Czech Republic"]
[BlackTeam "Czech Republic"]
[WhiteTeamCountry "CZE"]
[BlackTeamCountry "CZE"]
[TimeControl "40/5400+30:1800+30"]

1. d4 {[%emt 0:00:03]} Nf6 {[%emt 0:00:08]} 2. Nf3 {[%emt 0:00:04]} e6 {[%emt 0:00:13]} 3. g3 {[%emt 0:00:21]} b5 {[%emt 0:00:29]} 4. Bg2 {[%emt 0:01:00]} d5 {[%emt 0:00:19]} 5. O-O {[%emt 0:00:21]} Be7 {[%emt 0:00:26]} 6. b3 {[%emt 0:00:15]} O-O {[%emt 0:01:14]} 7. c4 {[%emt 0:01:54]} bxc4 {[%emt 0:10:58]} 8. bxc4 {[%emt 0:00:37]} Nbd7 {[%emt 0:02:49]} 9. Ba3 {[%emt 0:07:01]} Bb7 {[%emt 0:06:37]} 10. Bxe7 {[%emt 0:08:45]} Qxe7 {[%emt 0:00:02]} 11. Nc3 {[%emt 0:00:34]} dxc4 {[%emt 0:08:40]} 12. Rb1 {[%emt 0:07:10]} Nb6 {[%emt 0:07:15]} 13. a4 {[%emt 0:05:28]} Rab8 {[%emt 0:05:34]} 14. Qc2 {[%emt 0:10:22]} c5 {[%emt 0:07:38]} 15. Rfd1 {[%emt 0:06:16]} Rfd8 {[%emt 0:19:22]} 16. Rb5 {[%emt 0:16:23]} cxd4 {[%emt 0:00:00]} 17. Nxd4 {[%emt 0:01:02]} Bxg2 {[%emt 0:00:00]} 18. Kxg2 {[%emt 0:00:05]} Rbc8 {[%emt 0:00:00]} 19. e4 {[%emt 0:05:24]} g6 {[%emt 0:02:00]} 20. a5 {[%emt 0:04:50]} Nbd7 {[%emt 0:03:03]} 21. Rb7 {[%emt 0:02:39]} Qc5 {[%emt 0:03:00]} 22. Ndb5 {[%emt 0:01:21]} Ne5 {[%emt 0:02:37]} 23. Nxa7 {[%emt 0:04:13]} Ra8 {[%emt 0:02:08]} 24. Nab5 {[%emt 0:02:10]} Nd3 {[%emt 0:01:52]} 25. Qe2 {[%emt 0:06:56]} Rdc8 {[%emt 0:04:47]} 26. Ra1 {[%emt 0:02:17]} Qg5 {[%emt 0:03:32]} 27. Kh1 {[%emt 0:03:41]} Ng4 {[%emt 0:01:37]} 28. h4 {[%emt 0:00:33]} Ngxf2+ {[%emt 0:01:09]} 29. Kg2 {[%emt 0:00:04]} Qc5 {[%emt 0:04:00]} 30. Qf3 {[%emt 0:00:05]} Rf8 {[%emt 0:01:24]} 31. Rc7 {[%emt 0:01:05]} Qb4 {[%emt 0:00:07]} 32. Ra2 {[%emt 0:02:35]} Ne1+ {[%emt 0:00:47]} 33. Kxf2 {[%emt 0:00:48]} Nxf3 {[%emt 0:00:02]} 0-1

[Event "Czech Juniors Girls 2024"]
[Site "Jaromerice nad Rokytnou"]
[Date "2024.03.15"]
[Round "8.2"]
[White "Fizerova, Lucie"]
[Black "Petirova, Iva"]
[Result "1/2-1/2"]
[ECO "A07"]
[WhiteElo "1886"]
[BlackElo "1846"]
[Annotator "NA RC"]
[PlyCount "81"]
[EventDate "2024.03.10"]
[EventType "tourn"]
[EventCountry "CZE"]
[SourceTitle "playchess.com"]
[Source "ChessBase"]
[SourceQuality "1"]
[WhiteTeam "Czech Republic"]
[BlackTeam "Czech Republic"]
[WhiteTeamCountry "CZE"]
[BlackTeamCountry "CZE"]
[TimeControl "40/5400+30:1800+30"]

1. Nf3 {[%emt 0:00:03]} Nf6 {[%emt 0:00:21]} 2. g3 {[%emt 0:00:08]} g6 {[%emt 0:00:20]} 3. Bg2 {[%emt 0:00:13]} Bg7 {[%emt 0:00:04]} 4. O-O {[%emt 0:00:10]} O-O {[%emt 0:00:07]} 5. d3 {[%emt 0:00:12]} d5 {[%emt 0:01:09]} 6. Nbd2 {[%emt 0:00:52]} Nc6 {[%emt 0:01:10]} 7. Re1 {[%emt 0:01:24]} e5 {[%emt 0:01:29]} 8. e4 {[%emt 0:00:50]} Re8 {[%emt 0:01:55]} 9. a4 {[%emt 0:02:31] A07: Réti Opening: New York and Capablanca Systems.} a5 {[%emt 0:00:36]} 10. exd5 {[%emt 0:02:33]} Nxd5 {[%emt 0:00:08]} 11. Nc4 {[%emt 0:00:51]} h6 {[%emt 0:03:54]} 12. h3 {[%emt 0:09:10]} Kh7 {[%emt 0:04:24]} 13. Re2 {[%emt 0:04:28]} Ndb4 {[%emt 0:05:46]} 14. Bd2 {[%emt 0:04:15]} Bf5 {[%emt 0:02:50]} 15. Bxb4 {[%emt 0:01:55]} axb4 {[%emt 0:00:27]} 16. g4 {[%emt 0:01:49]} e4 {[%emt 0:02:11]} 17. gxf5 {[%emt 0:04:00]} exf3 {[%emt 0:00:14]} 18. Rxe8 {[%emt 0:02:47]} Qxe8 {[%emt 0:00:07]} 19. fxg6+ {[%emt 0:01:42]} fxg6 {[%emt 0:00:07]} 20. Qxf3 {[%emt 0:00:54]} Nd4 {[%emt 0:03:30]} 21. Qxb7 {[%emt 0:04:22]} Rxa4 {[%emt 0:00:22]} 22. Rf1 {[%emt 0:06:46]} Qd8 {[%emt 0:05:07]} 23. Kh1 {[%emt 0:09:31]} c5 {[%emt 0:08:14]} 24. c3 {[%emt 0:09:44]} bxc3 {[%emt 0:00:43]} 25. bxc3 {[%emt 0:00:24]} Ne2 {[%emt 0:01:01]} 26. Qc6 {[%emt 0:01:48]} Nxc3 {[%emt 0:03:08]} 27. Be4 {[%emt 0:11:12]} Nxe4 {[%emt 0:00:58]} 28. Qxe4 {[%emt 0:03:20]} Qd4 {[%emt 0:01:41]} 29. Qxd4 {[%emt 0:03:13]} Bxd4 {[%emt 0:00:06]} 30. Kg2 {[%emt 0:01:18]} Kg7 {[%emt 0:00:09]} 31. Kg3 {[%emt 0:00:44]} Ra2 {[%emt 0:03:03]} 32. f4 {[%emt 0:03:11]} Ra8 {[%emt 0:05:13]} 33. Rb1 {[%emt 0:01:24]} Ra7 {[%emt 0:00:32]} 34. Rb6 {[%emt 0:00:37]} Rd7 {[%emt 0:01:23]} 35. Kf3 {[%emt 0:01:43]} Re7 {[%emt 0:03:45]} 36. Rd6 {[%emt 0:02:13]} h5 {[%emt 0:04:00]} 37. Rd5 {[%emt 0:00:52]} Kf6 {[%emt 0:05:49]} 38. Rd6+ {[%emt 0:00:51]} Kg7 {[%emt 0:06:25]} 39. Rd5 {[%emt 0:00:45]} Kf6 {[%emt 0:01:49]} 40. Rd6+ {[%emt 0:00:09]} Kg7 {[%emt 0:05:24]} 41. Rd5 $11 {[%emt 0:34:20]} 1/2-1/2

[Event "Czech Juniors Girls 2024"]
[Site "Jaromerice nad Rokytnou"]
[Date "2024.03.15"]
[Round "8.3"]
[White "Nagyova, Daniela"]
[Black "Zelbova, Lada"]
[Result "0-1"]
[ECO "B92"]
[WhiteElo "1927"]
[BlackElo "1954"]
[Annotator "RC"]
[PlyCount "64"]
[EventDate "2024.03.10"]
[EventType "tourn"]
[EventCountry "CZE"]
[SourceTitle "playchess.com"]
[Source "ChessBase"]
[SourceQuality "1"]
[WhiteTeam "Czech Republic"]
[BlackTeam "Czech Republic"]
[WhiteTeamCountry "CZE"]
[BlackTeamCountry "CZE"]
[TimeControl "40/5400+30:1800+30"]

1. e4 {[%emt 0:00:06]} c5 {[%emt 0:00:06]} 2. Nf3 {[%emt 0:00:16]} d6 {[%emt 0:00:08]} 3. d4 {[%emt 0:00:23]} cxd4 {[%emt 0:00:07]} 4. Nxd4 {[%emt 0:00:08]} Nf6 {[%emt 0:00:14]} 5. Nc3 {[%emt 0:00:35]} a6 {[%emt 0:00:26]} 6. Be2 {[%emt 0:00:53]} e5 {[%emt 0:00:41]} 7. Nb3 {[%emt 0:00:42]} Be7 {[%emt 0:00:09]} 8. Be3 {[%emt 0:02:52]} Be6 {[%emt 0:00:39]} 9. O-O {[%emt 0:00:28]} Nbd7 {[%emt 0:02:29]} 10. Qd2 {[%emt 0:02:21]} Rc8 {[%emt 0:03:39]} 11. a4 {[%emt 0:04:48]} Nb6 {[%emt 0:06:16]} 12. a5 {[%emt 0:04:41]} Nc4 {[%emt 0:01:04]} 13. Bxc4 {[%emt 0:00:36]} Rxc4 {[%emt 0:00:35]} 14. f3 {[%emt 0:03:40]} Qd7 {[%emt 0:03:05]} 15. Rfd1 {[%emt 0:04:38]} O-O {[%emt 0:00:43]} 16. Nc1 {[%emt 0:03:59]} Rfc8 {[%emt 0:02:12]} 17. N1a2 {[%emt 0:05:35]} Qc6 {[%emt 0:06:07]} 18. Kh1 {[%emt 0:05:36]} Ne8 {[%emt 0:19:07]} 19. Qd3 {[%emt 0:25:36]} Bd8 {[%emt 0:02:23]} 20. Nc1 {[%emt 0:01:15]} Rb4 {[%emt 0:05:44]} 21. b3 {[%emt 0:06:14]} Qxc3 {[%emt 0:02:18]} 22. Qxc3 {[%emt 0:02:22]} Rxc3 {[%emt 0:00:10]} 23. Na2 {[%emt 0:02:07]} Rbxb3 {[%emt 0:09:00]} 24. cxb3 {[%emt 0:04:00]} Rxe3 {[%emt 0:00:31]} 25. b4 {[%emt 0:04:10]} Ra3 {[%emt 0:00:46]} 26. Rdc1 {[%emt 0:00:36]} Bxa2 {[%emt 0:05:45]} 27. Rc2 {[%emt 0:07:34]} Bb3 {[%emt 0:01:02]} 28. Rxa3 {[%emt 0:00:05]} Bxc2 {[%emt 0:00:06]} 29. b5 {[%emt 0:00:11]} Kf8 {[%emt 0:01:29]} 30. Rc3 {[%emt 0:01:29]} Ba4 {[%emt 0:00:32]} 31. bxa6 {[%emt 0:01:07]} bxa6 {[%emt 0:00:37]} 32. Rc8 {[%emt 0:00:06]} Bxa5 {[%emt 0:00:41]} 0-1

[Event "Czech Juniors Girls 2024"]
[Site "Jaromerice nad Rokytnou"]
[Date "2024.03.15"]
[Round "8.4"]
[White "Markina, Sofiia"]
[Black "Nespora, Tatana"]
[Result "1-0"]
[ECO "C54"]
[WhiteElo "1857"]
[BlackElo "1839"]
[Annotator "NA"]
[PlyCount "127"]
[EventDate "2024.03.10"]
[EventType "tourn"]
[EventCountry "CZE"]
[SourceTitle "playchess.com"]
[Source "ChessBase"]
[SourceQuality "1"]
[WhiteTeam "Czech Republic"]
[BlackTeam "Czech Republic"]
[WhiteTeamCountry "CZE"]
[BlackTeamCountry "CZE"]
[TimeControl "40/5400+30:1800+30"]

1. e4 {[%emt 0:00:02]} e5 {[%emt 0:00:12]} 2. Nf3 {[%emt 0:00:12]} Nc6 {[%emt 0:00:20]} 3. Bc4 {[%emt 0:00:22]} Nf6 {[%emt 0:00:32]} 4. d3 {[%emt 0:00:13]} Bc5 {[%emt 0:00:36]} 5. c3 {[%emt 0:00:19]} a6 {[%emt 0:01:44]} 6. Bb3 {[%emt 0:00:14]} Ba7 {[%emt 0:00:37]} 7. O-O {[%emt 0:00:19]} d6 {[%emt 0:00:20]} 8. Nbd2 {[%emt 0:00:37] 8.Re1 deserves study.} h6 {[%emt 0:00:54] C54: Giuoco Piano: 4 c3 Nf6, main lines with 5 d4 and 5 d3.} 9. Re1 {[%emt 0:02:00]} g5 {[%emt 0:02:11]} 10. Nf1 {[%emt 0:02:22]} Bg4 {[%emt 0:06:34]} 11. Be3 $146 {[%emt 0:02:43]} ({Predecessor:} 11. h3 Bd7 12. d4 g4 13. dxe5 gxf3 14. exf6 fxg2 15. Ne3 Qxf6 16. Qh5 Ne5 17. Nf5 Bxf2+ 18. Kxf2 {0-1 Andriasian,S (2298)-Papidakis,G (2135) EU-ch Amateur Online Final 2000/2300 rapid 2021 (3)}) 11... Qd7 {[%emt 0:07:09]} 12. Bxa7 {[%emt 0:00:37]} Nxa7 {[%emt 0:00:09]} 13. Ne3 {[%emt 0:01:19]} O-O-O {[%emt 0:01:53]} 14. a4 {[%emt 0:03:53]} Rdg8 {[%emt 0:03:09] [#]} 15. Bc4 {[%emt 0:05:54]} (15. Nxg4 $142 $1 Nxg4 16. d4) 15... Be6 {[%emt 0:04:51]} 16. b4 {[%emt 0:02:44]} h5 {[%emt 0:02:29]} 17. b5 {[%emt 0:08:27]} a5 {[%emt 0:02:09] [#]} 18. b6 $1 {[%emt 0:05:17]} Nc6 {[%emt 0:01:13]} (18... cxb6 $16 {might work better.} 19. Rb1 g4) 19. Qb3 {[%emt 0:12:09]} cxb6 {[%emt 0:03:16]} 20. Qxb6 {[%emt 0:00:11]} Qc7 {[%emt 0:00:21]} 21. Qb3 {[%emt 0:01:00]} Qd7 {[%emt 0:03:08]} 22. Rab1 {[%emt 0:03:33]} h4 {[%emt 0:02:32]} 23. Bxe6 {[%emt 0:00:18]} fxe6 {[%emt 0:00:39]} 24. Nc4 {[%emt 0:00:10]} Qe7 {[%emt 0:03:04]} 25. d4 {[%emt 0:06:27]} g4 {[%emt 0:05:57]} 26. Nfd2 {[%emt 0:00:07]} g3 {[%emt 0:04:22]} 27. Nf3 {[%emt 0:11:23]} Ng4 {[%emt 0:04:08]} 28. fxg3 {[%emt 0:02:26]} hxg3 {[%emt 0:05:51]} 29. h3 {[%emt 0:03:04]} Nh2 {[%emt 0:08:22]} 30. Nxh2 {[%emt 0:12:20]} gxh2+ {[%emt 0:00:18]} 31. Kxh2 {[%emt 0:00:06]} exd4 {[%emt 0:02:35]} 32. cxd4 {[%emt 0:01:12]} Nxd4 {[%emt 0:00:45]} 33. Qc3 {[%emt 0:01:06]} Nc6 {[%emt 0:02:07]} 34. Rb2 {[%emt 0:02:52]} Qg7 {[%emt 0:01:11]} 35. Nxd6+ {[%emt 0:00:09]} Kd8 {[%emt 0:00:22]} 36. Nxb7+ {[%emt 0:00:22]} Kc7 {[%emt 0:00:11]} 37. Qxg7+ {[%emt 0:01:35]} Rxg7 {[%emt 0:00:03]} 38. Nc5 {[%emt 0:00:14]} Rg6 {[%emt 0:00:20]} 39. e5 {[%emt 0:01:52]} Rhg8 {[%emt 0:00:26]} 40. Na6+ {[%emt 0:00:34]} Kd7 {[%emt 0:01:03]} 41. Nc5+ $11 {[%emt 0:32:46]} (41. g4 $18) 41... Ke7 {[%emt 0:30:33]} 42. Rb7+ {[%emt 0:01:16]} Ke8 {[%emt 0:00:30]} 43. g4 {[%emt 0:00:24]} Nd4 {[%emt 0:00:11]} 44. Re3 {[%emt 0:02:49]} R8g7 {[%emt 0:00:28]} 45. Rxg7 {[%emt 0:00:28]} Rxg7 {[%emt 0:00:02]} 46. Rd3 {[%emt 0:00:38]} Rc7 {[%emt 0:00:47]} 47. Rxd4 {[%emt 0:01:02]} Rxc5 {[%emt 0:00:02]} 48. Re4 {[%emt 0:00:18]} Kf7 {[%emt 0:00:46]} 49. Kg3 {[%emt 0:00:34]} Kg6 {[%emt 0:00:03]} 50. Kf4 {[%emt 0:02:38]} Rc1 {[%emt 0:00:51]} 51. h4 {[%emt 0:00:36]} Rf1+ {[%emt 0:00:10]} 52. Kg3 {[%emt 0:00:24]} Rh1 {[%emt 0:00:10]} 53. Rf4 {[%emt 0:00:41]} Ra1 {[%emt 0:00:23]} 54. Rf6+ {[%emt 0:00:31]} Kg7 {[%emt 0:00:06]} 55. Rxe6 {[%emt 0:00:08]} Rxa4 {[%emt 0:00:09]} 56. h5 {[%emt 0:00:35]} Re4 {[%emt 0:00:20]} 57. Kf3 {[%emt 0:00:43]} Re1 {[%emt 0:00:13]} 58. Kf4 {[%emt 0:00:17]} Rf1+ {[%emt 0:00:15]} 59. Kg5 {[%emt 0:00:10]} a4 {[%emt 0:00:23]} 60. h6+ {[%emt 0:01:31]} Kg8 {[%emt 0:00:59]} 61. Ra6 {[%emt 0:00:00]} Re1 {[%emt 0:00:00]} 62. Kg6 {[%emt 0:00:00]} Kf8 {[%emt 0:00:00]} 63. h7 {[%emt 0:00:00]} Rh1 {[%emt 0:00:00]} 64. Ra8+ {[%emt 0:00:00]} 1-0

[Event "Czech Juniors Girls 2024"]
[Site "Jaromerice nad Rokytnou"]
[Date "2024.03.15"]
[Round "8.5"]
[White "Sulcova, Tereza Radmila"]
[Black "Jakubse, Tamae Severina"]
[Result "1-0"]
[ECO "C58"]
[WhiteElo "1835"]
[BlackElo "1861"]
[Annotator "NA RC"]
[PlyCount "38"]
[EventDate "2024.03.10"]
[EventType "tourn"]
[EventCountry "CZE"]
[SourceTitle "playchess.com"]
[Source "ChessBase"]
[SourceQuality "1"]
[WhiteTeam "Czech Republic"]
[BlackTeam "Czech Republic"]
[WhiteTeamCountry "CZE"]
[BlackTeamCountry "CZE"]
[TimeControl "40/5400+30:1800+30"]

1. e4 {[%emt 0:00:04]} e5 {[%emt 0:00:01]} 2. Nf3 {[%emt 0:00:16]} Nc6 {[%emt 0:00:06]} 3. Bc4 {[%emt 0:00:10]} Nf6 {[%emt 0:00:05]} 4. Ng5 {[%emt 0:00:11]} d5 {[%emt 0:00:06]} 5. exd5 {[%emt 0:00:08]} Na5 {[%emt 0:00:04]} 6. Bb5+ {[%emt 0:00:15]} c6 {[%emt 0:00:04]} 7. dxc6 {[%emt 0:00:14]} bxc6 {[%emt 0:00:02]} 8. Qf3 {[%emt 0:00:12]} h6 {[%emt 0:00:06]} 9. Ne4 {[%emt 0:17:23]} cxb5 {[%emt 0:00:07]} 10. Nxf6+ {[%emt 0:00:19]} gxf6 {[%emt 0:00:04]} 11. Qxa8 {[%emt 0:01:01]} Qd7 {[%emt 0:00:15]} 12. Qf3 {[%emt 0:03:06]} Nc6 {[%emt 0:05:36]} 13. Nc3 {[%emt 0:13:02]} ({Weaker is} 13. Qxf6 Rg8 14. c3 Rxg2 $17) 13... Nd4 {[%emt 0:13:31]} 14. Qxf6 {[%emt 0:17:48]} Rg8 {[%emt 0:13:25]} 15. Qxe5+ {[%emt 0:08:01]} Kd8 {[%emt 0:00:40] [#]} 16. Kd1 $16 {[%emt 0:08:11]} Rxg2 {[%emt 0:16:15]} 17. Qf6+ {[%emt 0:04:50]} Be7 {[%emt 0:03:29]} 18. Qh8+ {[%emt 0:00:36]} Kc7 {[%emt 0:00:09]} 19. Qxd4 {[%emt 0:00:59]} Kc6 {[%emt 0:11:04]} 1-0

[Event "Czech Juniors Girls 2024"]
[Site "Jaromerice nad Rokytnou"]
[Date "2024.03.16"]
[Round "9.1"]
[White "Jakubse, Tamae Severina"]
[Black "Trasakova, Adela"]
[Result "1/2-1/2"]
[ECO "B13"]
[WhiteElo "1861"]
[BlackElo "1935"]
[Annotator "NA RC"]
[PlyCount "63"]
[EventDate "2024.03.10"]
[EventType "tourn"]
[EventCountry "CZE"]
[SourceTitle "playchess.com"]
[Source "ChessBase"]
[SourceQuality "1"]
[TimeControl "40/5400+30:1800+30"]

1. e4 {[%emt 0:00:03]} c6 {[%emt 0:00:01]} 2. d4 {[%emt 0:00:01]} d5 {[%emt 0:00:08]} 3. exd5 {[%emt 0:00:04]} cxd5 {[%emt 0:00:04]} 4. c4 {[%emt 0:00:05]} Nf6 {[%emt 0:00:06]} 5. Nc3 {[%emt 0:00:03]} Nc6 {[%emt 0:00:06]} 6. Nf3 {[%emt 0:00:04]} a6 {[%emt 0:00:16] punktet besser als das ältere 6...Bg4.} 7. h3 {[%emt 0:03:17] B13: Caro-Kann (Abtausch-Variante 4.c4).} g6 {[%emt 0:06:56]} 8. Be2 {[%emt 0:03:19]} (8. c5 {should be considered.}) 8... dxc4 $146 {[%emt 0:06:31]} ({Predecessor:} 8... Bg7 9. Be3 dxc4 10. Bxc4 Na5 11. Be2 O-O 12. O-O b5 13. Ne5 Bb7 14. b4 Nc6 15. Nxc6 Bxc6 {0-1 Peralta Macas,S (1428)-Quiroz Alva,G (1729) Pan American-ch School U15 12th 2023 (3)}) 9. Bxc4 {[%emt 0:01:44]} Na5 {[%emt 0:05:32]} 10. Be2 {[%emt 0:04:49]} Bg7 {[%emt 0:02:02]} 11. O-O {[%emt 0:02:00]} O-O {[%emt 0:00:23]} 12. Bf4 {[%emt 0:09:43]} b5 {[%emt 0:06:37]} 13. b4 {[%emt 0:10:05]} Nc6 {[%emt 0:03:44]} 14. a4 {[%emt 0:03:33]} Bb7 {[%emt 0:12:08]} 15. Qd2 {[%emt 0:13:51]} Nxb4 {[%emt 0:05:06]} 16. axb5 {[%emt 0:05:28]} axb5 {[%emt 0:01:08]} 17. Nxb5 {[%emt 0:01:07]} Nbd5 {[%emt 0:01:02]} 18. Be5 {[%emt 0:02:34]} Qd7 {[%emt 0:05:38]} 19. Rac1 {[%emt 0:03:56]} Rfc8 {[%emt 0:01:39]} 20. Rxc8+ {[%emt 0:06:26]} Rxc8 {[%emt 0:01:22]} 21. Qb2 {[%emt 0:05:12]} Bc6 {[%emt 0:02:01]} 22. Ra1 $11 {[%emt 0:02:29]} Ra8 {[%emt 0:01:57]} 23. Rxa8+ {[%emt 0:01:44]} Bxa8 {[%emt 0:00:04]} 24. Nd2 {[%emt 0:02:26]} Qb7 {[%emt 0:04:32]} 25. Bf3 {[%emt 0:03:24]} Nd7 {[%emt 0:02:46]} 26. Bxg7 {[%emt 0:09:53]} Kxg7 {[%emt 0:00:05]} 27. Ne4 {[%emt 0:01:14]} Qb6 {[%emt 0:02:41]} 28. Nc5 {[%emt 0:01:02]} N7f6 {[%emt 0:02:15]} 29. Na4 {[%emt 0:03:04]} Qa5 {[%emt 0:03:37]} 30. Nc5 {[%emt 0:00:06]} Qb6 {[%emt 0:01:25]} 31. Na4 {[%emt 0:00:35]} Qa5 {[%emt 0:07:38]} 32. Nc5 {[%emt 0:02:47]} 1/2-1/2

[Event "Czech Juniors Girls 2024"]
[Site "Jaromerice nad Rokytnou"]
[Date "2024.03.16"]
[Round "9.2"]
[White "Nespora, Tatana"]
[Black "Sulcova, Tereza Radmila"]
[Result "1/2-1/2"]
[ECO "B00"]
[WhiteElo "1839"]
[BlackElo "1835"]
[Annotator "NA RC"]
[PlyCount "63"]
[EventDate "2024.03.10"]
[EventType "tourn"]
[EventCountry "CZE"]
[SourceTitle "playchess.com"]
[Source "ChessBase"]
[SourceQuality "1"]
[TimeControl "40/5400+30:1800+30"]

1. d4 {[%emt 0:00:07]} b5 {[%emt 0:02:13]} 2. e4 {[%emt 0:01:34]} Bb7 {[%emt 0:01:11]} 3. Bd3 {[%emt 0:01:19]} e6 {[%emt 0:01:09]} 4. Nf3 {[%emt 0:01:15]} a6 {[%emt 0:02:59]} 5. O-O {[%emt 0:01:00]} Nf6 {[%emt 0:01:38]} 6. Qe2 {[%emt 0:00:57]} c5 {[%emt 0:02:19]} 7. c3 {[%emt 0:01:43]} d6 {[%emt 0:03:01]} 8. d5 {[%emt 0:03:49]} (8. dxc5 $14 {ist überlegen.} dxc5 9. c4) 8... e5 $16 {[%emt 0:12:05]} (8... exd5 $1 $11 {hält das Gleichgewicht.} 9. Bg5 (9. exd5+ Be7 $11) 9... dxe4 10. Bxe4 Qe7 (10... Bxe4 $2 {verliert.} 11. Bxf6 Qxf6 12. Qxe4+ Be7 13. Qxa8 $18)) 9. a4 {[%emt 0:02:37]} c4 {[%emt 0:02:17]} 10. Bc2 {[%emt 0:00:37]} Nbd7 {[%emt 0:08:31]} 11. b3 {[%emt 0:02:19]} cxb3 {[%emt 0:01:49]} 12. Bxb3 {[%emt 0:00:31]} bxa4 {[%emt 0:01:10]} 13. Bxa4 {[%emt 0:00:41]} Be7 {[%emt 0:01:58]} 14. h3 {[%emt 0:01:28]} O-O {[%emt 0:01:03]} 15. Bxd7 {[%emt 0:01:34]} Nxd7 {[%emt 0:00:50]} 16. Nfd2 {[%emt 0:01:52]} f5 {[%emt 0:13:35]} 17. f3 {[%emt 0:01:11]} Nc5 {[%emt 0:03:16]} 18. Ba3 {[%emt 0:05:09]} Rc8 {[%emt 0:03:55]} 19. c4 {[%emt 0:05:32]} Bg5 {[%emt 0:10:31]} 20. Bxc5 {[%emt 0:08:16]} Rxc5 {[%emt 0:00:10]} 21. Nb3 {[%emt 0:00:08]} Rc7 {[%emt 0:00:18]} 22. N1d2 {[%emt 0:00:23]} Bf4 {[%emt 0:05:24]} 23. Rfb1 {[%emt 0:04:37]} Bc8 {[%emt 0:01:20]} 24. exf5 {[%emt 0:08:41]} Rxf5 {[%emt 0:01:48]} 25. Ne4 {[%emt 0:02:20]} Rh5 {[%emt 0:00:32]} 26. Nf2 {[%emt 0:00:25]} Qg5 {[%emt 0:03:52]} 27. Kf1 {[%emt 0:04:06]} Qg6 {[%emt 0:07:17]} 28. Nd2 {[%emt 0:03:13]} Bxd2 {[%emt 0:01:16]} 29. Qxd2 {[%emt 0:00:16]} Rxc4 {[%emt 0:01:57]} 30. Rc1 {[%emt 0:00:43]} Rxc1+ {[%emt 0:00:22]} 31. Rxc1 {[%emt 0:00:02]} Bd7 {[%emt 0:00:56]} 32. Qc2 {[%emt 0:08:01]} 1/2-1/2